fUSD/lending_fUSD_20260703
["ID","MTS","AMOUNT","RATE_DAILY","PERIOD"]
[426955372,1783059039000,-500.0,0.00021817,2]
[426955368,1783059039000,-500.0,0.00021817,2]
[426955371,1783059039000,-500.0,0.00021817,2]
[426955369,1783059039000,-500.0,0.00021817,2]
[426955423,1783059039000,-500.0,0.00023198,2]
[426955373,1783059039000,-368.31719129,0.00021817,2]
[426955395,1783059039000,-159.05,0.00022034,2]
[426955375,1783059039000,-500.0,0.00021817,2]
[426955379,1783059039000,-150.0,0.00021918,2]
[426955378,1783059039000,-300.0,0.000219,7]
[426955381,1783059039000,-5000.0,0.00021918,2]
[426955383,1783059039000,-151.47,0.00021948,2]
[426955377,1783059039000,-1544.1506602,0.00021879,2]
[426955386,1783059039000,-3374.5208252,0.00021999,2]
[426955388,1783059039000,-19309.7407779,0.00021999,2]
[426955385,1783059039000,-2790.1065012,0.00021999,2]
[426955390,1783059039000,-825.4815701,0.00021999,2]
[426955394,1783059039000,-856.8329394,0.00021999,2]
[426955393,1783059039000,-503.90554429,0.00021999,2]
[426955376,1783059039000,-910.51515761,0.00021837,2]
[426955419,1783059039000,-167.04,0.00023173,2]
[426955410,1783059039000,-392.0,0.00023,2]
[426955427,1783059039000,-200.0,0.0002323,2]
[426955458,1783059039000,-161.972684,0.00024174,2]
[426955456,1783059039000,-151.0,0.00024156,2]
[426955453,1783059039000,-1047.253721,0.00024156,2]
[426955460,1783059039000,-892.414534,0.00024174,2]
[426955461,1783059039000,-892.414534,0.00024174,2]
[426955462,1783059039000,-892.414534,0.00024174,2]
[426955463,1783059039000,-151.0,0.00024174,2]
[426955466,1783059039000,-254.89282,0.00024174,2]
[426955469,1783059039000,-620.329416,0.00024174,2]
[426955465,1783059039000,-254.89282,0.00024174,2]
[426955468,1783059039000,-254.89282,0.00024174,2]
[426955467,1783059039000,-620.329416,0.00024174,2]
[426955471,1783059039000,-620.329416,0.00024174,2]
[426955470,1783059039000,-254.89282,0.00024174,2]
[426955473,1783059039000,-4225.47,0.00024174,2]
[426955472,1783059039000,-620.329416,0.00024174,2]
[426955474,1783059039000,-620.15,0.00024174,2]
[426955478,1783059039000,-240.42205916,0.00024333,7]
[426955476,1783059039000,-24949.87,0.00024174,2]
[426955479,1783059039000,-359.6570218,0.00024333,7]
[426955475,1783059039000,-1130.25,0.00024174,2]
[426955480,1783059039000,-486.6246,0.00024333,7]
[426955477,1783059039000,-863.47626194,0.0002421,2]
[426955424,1783059039000,-421.168781,0.00023198,2]
[426955481,1783059039000,-167.04,0.00024382,2]
[426955459,1783059039000,-892.414534,0.00024174,2]
[426955455,1783059039000,-1047.253721,0.00024156,2]
[426955464,1783059039000,-151.0,0.00024174,2]
[426955454,1783059039000,-1047.253721,0.00024156,2]
[426955428,1783059039000,-150.0,0.000234,2]
[426955429,1783059039000,-150.0,0.000235,2]
[426955451,1783059039000,-226.155883,0.00024156,2]
[426955435,1783059039000,-150.0,0.00024115,4]
[426955433,1783059039000,-159.05,0.0002387,2]
[426955436,1783059039000,-150.0,0.00024115,4]
[426955432,1783059039000,-150.0,0.000238,2]
[426955430,1783059039000,-181.4,0.00023591,2]
[426955431,1783059039000,-2947.03872378,0.00023745,2]
[426955437,1783059039000,-150.0,0.00024115,4]
[426955438,1783059039000,-150.0,0.00024115,4]
[426955448,1783059039000,-151.0,0.00024156,15]
[426955445,1783059039000,-295.375301,0.00024156,2]
[426955434,1783059039000,-910.51515761,0.00023921,2]
[426955439,1783059039000,-150.0,0.00024115,4]
[426955452,1783059039000,-1047.253721,0.00024156,2]
[426955441,1783059039000,-150.0,0.00024115,4]
[426955447,1783059039000,-151.0,0.00024156,15]
[426955449,1783059039000,-151.0,0.00024156,2]
[426955444,1783059039000,-151.0,0.00024156,2]
[426955446,1783059039000,-151.0,0.00024156,2]
[426955442,1783059039000,-151.0,0.00024156,2]
[426955443,1783059039000,-151.0,0.00024156,2]
[426955450,1783059039000,-171.32324,0.00024156,2]
[426955457,1783059039000,-150.0,0.00024164,2]
[426955440,1783059039000,-150.0,0.00024115,4]
[426955525,1783059040000,-150.0,0.000248,2]
[426955524,1783059040000,-150.0,0.00024785,7]
[426955527,1783059040000,-700.0,0.000249,9]
[426955531,1783059040000,-316.45976516,0.00024909,2]
[426955520,1783059040000,-150.0,0.000247,2]
[426955512,1783059040000,-151.0,0.00024658,2]
[426955514,1783059040000,-151.0,0.00024658,2]
[426955513,1783059040000,-151.0,0.00024658,2]
[426955517,1783059040000,-155.52,0.00024658,2]
[426955522,1783059040000,-752.02853824,0.00024713,2]
[426955510,1783059040000,-153.324504,0.00024658,2]
[426955515,1783059040000,-151.0,0.00024658,2]
[426955535,1783059040000,-417.48535392,0.00025054,2]
[426955544,1783059040000,-150.0,0.00025373,2]
[426955533,1783059040000,-660.13,0.00024961,7]
[426955529,1783059040000,-182.84817525,0.00024903,2]
[426955534,1783059040000,-1587.74467841,0.00025054,2]
[426955536,1783059040000,-155.76472,0.00025054,2]
[426955538,1783059040000,-150.0,0.0002512,7]
[426955537,1783059040000,-150.0,0.000251,2]
[426955549,1783059040000,-150.0,0.00025455,7]
[426955548,1783059040000,-150.0,0.00025455,7]
[426955539,1783059040000,-394.41,0.00025191,120]
[426955543,1783059040000,-417.48535392,0.00025328,2]
[426955547,1783059040000,-164.88,0.00025422,2]
[426955511,1783059040000,-151.0,0.00024658,2]
[426955526,1783059040000,-170.4,0.00024817,2]
[426955516,1783059040000,-151.0,0.00024658,2]
[426955494,1783059040000,-156.80197,0.00024658,2]
[426955519,1783059040000,-150.0,0.00024697,5]
[426955542,1783059040000,-910.51515761,0.00025311,2]
[426955482,1783059040000,-150.0,0.000244,2]
[426955484,1783059040000,-10290.0,0.00024463,7]
[426955487,1783059040000,-169.34,0.00024658,2]
[426955483,1783059040000,-150.0,0.0002445,7]
[426955491,1783059040000,-156.80197,0.00024658,2]
[426955489,1783059040000,-156.80197,0.00024658,2]
[426955492,1783059040000,-156.80197,0.00024658,2]
[426955486,1783059040000,-910.51515761,0.00024616,2]
[426955488,1783059040000,-156.80197,0.00024658,2]
[426955485,1783059040000,-150.0,0.000246,2]
[426955493,1783059040000,-156.80197,0.00024658,2]
[426955490,1783059040000,-156.80197,0.00024658,2]
[426955509,1783059040000,-151.0,0.00024658,2]
[426955495,1783059040000,-156.80197,0.00024658,2]
[426955496,1783059040000,-251.638202,0.00024658,2]
[426955506,1783059040000,-151.0,0.00024658,2]
[426955498,1783059040000,-251.638202,0.00024658,2]
[426955505,1783059040000,-151.0,0.00024658,2]
[426955500,1783059040000,-251.638202,0.00024658,2]
[426955502,1783059040000,-251.638202,0.00024658,2]
[426955497,1783059040000,-251.638202,0.00024658,2]
[426955503,1783059040000,-251.638202,0.00024658,2]
[426955504,1783059040000,-1000.0,0.00024658,2]
[426955501,1783059040000,-251.638202,0.00024658,2]
[426955507,1783059040000,-151.0,0.00024658,2]
[426955518,1783059040000,-155.48,0.00024658,2]
[426955508,1783059040000,-151.0,0.00024658,2]
[426955499,1783059040000,-251.638202,0.00024658,2]
[426955540,1783059040000,-150.0,0.000252,2]
[426955528,1783059040000,-162.24291938,0.00024903,2]
[426955545,1783059040000,-164.67156656,0.00025397,2]
[426955579,1783059040000,-500.0,0.00025799,2]
[426955582,1783059040000,-500.0,0.00025799,2]
[426955581,1783059040000,-500.0,0.00025799,2]
[426955577,1783059040000,-151.0,0.00025797,7]
[426955594,1783059040000,-151.0,0.000258,2]
[426955597,1783059040000,-151.0,0.000258,2]
[426955595,1783059040000,-151.0,0.000258,2]
[426955585,1783059040000,-606.66678624,0.00025799,2]
[426955596,1783059040000,-151.0,0.000258,2]
[426955592,1783059040000,-187.763118,0.000258,2]
[426955587,1783059040000,-500.0,0.00025799,2]
[426955588,1783059040000,-1684.97224218,0.000258,2]
[426955589,1783059040000,-1225.57974671,0.000258,2]
[426955586,1783059040000,-500.0,0.00025799,2]
[426955593,1783059040000,-151.0,0.000258,2]
[426955590,1783059040000,-462.05292965,0.000258,2]
[426955591,1783059040000,-470264.33671937,0.000258,2]
[426955598,1783059040000,-151.0,0.000258,2]
[426955600,1783059040000,-151.0,0.000258,2]
[426955599,1783059040000,-151.0,0.000258,2]
[426955601,1783059040000,-156.80197,0.000258,2]
[426955607,1783059040000,-251.638202,0.000258,2]
[426955603,1783059040000,-151.0,0.000258,2]
[426955602,1783059040000,-156.80197,0.000258,2]
[426955604,1783059040000,-156.80197,0.000258,2]
[426955605,1783059040000,-156.80197,0.000258,2]
[426955541,1783059040000,-150.0,0.000253,2]
[426955574,1783059040000,-150.0,0.0002579,7]
[426955580,1783059040000,-500.0,0.00025799,2]
[426955606,1783059040000,-251.638202,0.000258,2]
[426955578,1783059040000,-151.0,0.00025797,7]
[426955546,1783059040000,-150.0,0.000254,2]
[426955551,1783059040000,-1225.57974671,0.000255,2]
[426955550,1783059040000,-1684.97224218,0.000255,2]
[426955561,1783059040000,-155.76472,0.00025602,2]
[426955553,1783059040000,-150.0,0.000255,2]
[426955552,1783059040000,-462.05292965,0.000255,2]
[426955562,1783059040000,-177.0,0.00025685,5]
[426955560,1783059040000,-417.48535392,0.00025602,2]
[426955583,1783059040000,-500.0,0.00025799,2]
[426955558,1783059040000,-167.04,0.0002559,2]
[426955556,1783059040000,-160.0,0.00025585,2]
[426955554,1783059040000,-172.8188446,0.00025535,2]
[426955557,1783059040000,-160.0,0.00025585,2]
[426955555,1783059040000,-216.74224685,0.00025585,2]
[426955559,1783059040000,-10044.02353165,0.000256,2]
[426955563,1783059040000,-215.67792856,0.00025697,2]
[426955576,1783059040000,-151.0,0.00025797,7]
[426955564,1783059040000,-151.0,0.000257,7]
[426955584,1783059040000,-500.0,0.00025799,2]
[426955575,1783059040000,-207.64359543,0.0002579,2]
[426955572,1783059040000,-159.05,0.00025706,2]
[426955573,1783059040000,-1999.01,0.00025716,2]
[426955571,1783059040000,-6663.73,0.00025702,2]
[426955569,1783059040000,-500.0,0.00025701,2]
[426955568,1783059040000,-500.0,0.00025701,2]
[426955567,1783059040000,-500.0,0.00025701,2]
[426955565,1783059040000,-500.0,0.00025701,2]
[426955566,1783059040000,-500.0,0.00025701,2]
[426955570,1783059040000,-654.25,0.00025702,2]
[426955644,1783059041000,-40000.0,0.00026,2]
[426955651,1783059041000,-6126.4124582,0.00026,10]
[426955648,1783059041000,-2068.84214299,0.00026,5]
[426955645,1783059041000,-1137.31283554,0.00026,2]
[426955643,1783059041000,-462.05292965,0.00026,2]
[426955646,1783059041000,-4620.53191287,0.00026,2]
[426955638,1783059041000,-1000.0,0.000259,9]
[426955641,1783059041000,-1684.97224218,0.00026,2]
[426955640,1783059041000,-613.87319993,0.0002599,2]
[426955639,1783059041000,-500.0,0.00025908,2]
[426955642,1783059041000,-1225.57974671,0.00026,2]
[426955654,1783059041000,-279.12440684,0.00026099,7]
[426955664,1783059041000,-500.0,0.00026101,2]
[426955652,1783059041000,-910.51515761,0.00026005,2]
[426955650,1783059041000,-5000.0,0.00026,8]
[426955658,1783059041000,-705.0,0.000261,2]
[426955656,1783059041000,-7044.0,0.000261,2]
[426955649,1783059041000,-5000.0,0.00026,7]
[426955653,1783059041000,-500.0,0.00026098,2]
[426955655,1783059041000,-10044.02353165,0.000261,2]
[426955657,1783059041000,-706.0,0.000261,2]
[426955661,1783059041000,-616.0,0.000261,2]
[426955672,1783059041000,-151.0,0.00026102,2]
[426955663,1783059041000,-500.0,0.00026101,2]
[426955671,1783059041000,-151.0,0.00026102,2]
[426955635,1783059041000,-151.0,0.000258,2]
[426955659,1783059041000,-550.0,0.000261,2]
[426955637,1783059041000,-10044.02353165,0.000259,2]
[426955623,1783059041000,-254.89282,0.000258,2]
[426955647,1783059041000,-12629.38091925,0.00026,10]
[426955660,1783059041000,-176.52136649,0.000261,2]
[426955609,1783059041000,-251.638202,0.000258,2]
[426955610,1783059041000,-1047.253721,0.000258,2]
[426955608,1783059041000,-251.638202,0.000258,2]
[426955612,1783059041000,-1047.253721,0.000258,2]
[426955620,1783059041000,-151.0,0.000258,2]
[426955622,1783059041000,-254.89282,0.000258,2]
[426955621,1783059041000,-171.279758,0.000258,2]
[426955618,1783059041000,-892.414534,0.000258,2]
[426955611,1783059041000,-1047.253721,0.000258,2]
[426955613,1783059041000,-1047.253721,0.000258,2]
[426955616,1783059041000,-892.414534,0.000258,2]
[426955614,1783059041000,-152.450153,0.000258,2]
[426955619,1783059041000,-892.414534,0.000258,2]
[426955615,1783059041000,-151.0,0.000258,2]
[426955617,1783059041000,-892.414534,0.000258,2]
[426955626,1783059041000,-620.329416,0.000258,2]
[426955634,1783059041000,-151.0,0.000258,2]
[426955627,1783059041000,-254.89282,0.000258,2]
[426955629,1783059041000,-620.329416,0.000258,2]
[426955625,1783059041000,-254.89282,0.000258,2]
[426955624,1783059041000,-620.329416,0.000258,2]
[426955628,1783059041000,-620.329416,0.000258,2]
[426955632,1783059041000,-151.0,0.000258,2]
[426955633,1783059041000,-151.0,0.000258,2]
[426955631,1783059041000,-151.0,0.000258,2]
[426955630,1783059041000,-151.0,0.000258,2]
[426955636,1783059041000,-417.48535392,0.00025876,2]
[426955662,1783059041000,-500.0,0.00026101,2]
[426955666,1783059041000,-27975.7929804,0.00026102,2]
[426955665,1783059041000,-50856.8969152,0.00026102,2]
[426955698,1783059041000,-254.89282,0.00026102,2]
[426955700,1783059041000,-254.89282,0.00026102,2]
[426955702,1783059041000,-620.329416,0.00026102,2]
[426955701,1783059041000,-620.329416,0.00026102,2]
[426955704,1783059041000,-151.0,0.00026102,2]
[426955705,1783059041000,-151.0,0.00026102,2]
[426955707,1783059041000,-151.0,0.00026102,2]
[426955708,1783059041000,-169.6841,0.00026102,2]
[426955709,1783059041000,-150.0,0.00026125,7]
[426955719,1783059041000,-343.25,0.00026251,30]
[426955718,1783059041000,-632.91953031,0.00026163,2]
[426955712,1783059041000,-157.172891,0.00026153,2]
[426955710,1783059041000,-417.48535392,0.0002615,2]
[426955717,1783059041000,-192.37644422,0.00026156,2]
[426955716,1783059041000,-201.6390034,0.00026156,2]
[426955715,1783059041000,-365.6963505,0.00026156,2]
[426955711,1783059041000,-155.76472,0.0002615,2]
[426955714,1783059041000,-324.48583877,0.00026156,2]
[426955713,1783059041000,-294.91857052,0.00026153,2]
[426955721,1783059041000,-1225.57974671,0.000263,2]
[426955724,1783059041000,-157.172891,0.00026368,2]
[426955720,1783059041000,-1684.97224218,0.000263,2]
[426955722,1783059041000,-462.05292965,0.000263,2]
[426955669,1783059041000,-151.0,0.00026102,2]
[426955725,1783059041000,-164.67156656,0.00026397,2]
[426955726,1783059041000,-10044.02353165,0.000264,2]
[426955727,1783059041000,-233.6935255,0.000264,2]
[426955697,1783059041000,-620.329416,0.00026102,2]
[426955703,1783059041000,-151.0,0.00026102,2]
[426955723,1783059041000,-175.565002,0.00026301,2]
[426955695,1783059041000,-254.89282,0.00026102,2]
[426955699,1783059041000,-620.329416,0.00026102,2]
[426955667,1783059041000,-3694.6929137,0.00026102,2]
[426955670,1783059041000,-151.0,0.00026102,2]
[426955673,1783059041000,-151.0,0.00026102,2]
[426955677,1783059041000,-156.80197,0.00026102,2]
[426955675,1783059041000,-151.0,0.00026102,2]
[426955676,1783059041000,-156.80197,0.00026102,2]
[426955679,1783059041000,-156.80197,0.00026102,2]
[426955678,1783059041000,-151.0,0.00026102,2]
[426955674,1783059041000,-151.0,0.00026102,2]
[426955680,1783059041000,-156.80197,0.00026102,2]
[426955683,1783059041000,-251.638202,0.00026102,2]
[426955682,1783059041000,-251.638202,0.00026102,2]
[426955668,1783059041000,-151.0,0.00026102,2]
[426955681,1783059041000,-251.638202,0.00026102,2]
[426955684,1783059041000,-251.638202,0.00026102,2]
[426955691,1783059041000,-892.414534,0.00026102,2]
[426955692,1783059041000,-892.414534,0.00026102,2]
[426955694,1783059041000,-151.0,0.00026102,2]
[426955693,1783059041000,-892.414534,0.00026102,2]
[426955706,1783059041000,-151.001365,0.00026102,2]
[426955685,1783059041000,-1047.253721,0.00026102,2]
[426955686,1783059041000,-1047.253721,0.00026102,2]
[426955690,1783059041000,-892.414534,0.00026102,2]
[426955696,1783059041000,-254.89282,0.00026102,2]
[426955689,1783059041000,-151.0,0.00026102,2]
[426955688,1783059041000,-1047.253721,0.00026102,2]
[426955687,1783059041000,-1047.253721,0.00026102,2]
[426955752,1783059042000,-150.0,0.00026641,2]
[426955764,1783059042000,-162.698871,0.00026742,2]
[426955754,1783059042000,-417.48535392,0.00026698,2]
[426955758,1783059042000,-910.51515761,0.000267,2]
[426955755,1783059042000,-155.76472,0.00026698,2]
[426955757,1783059042000,-1400.0,0.000267,9]
[426955759,1783059042000,-228.6317143,0.000267,2]
[426955762,1783059042000,-151.0,0.00026742,2]
[426955766,1783059042000,-151.0,0.00026742,2]
[426955774,1783059042000,-251.638202,0.00026742,2]
[426955756,1783059042000,-150.0,0.000267,2]
[426955770,1783059042000,-156.80197,0.00026742,2]
[426955767,1783059042000,-151.0,0.00026742,2]
[426955763,1783059042000,-151.0,0.00026742,2]
[426955765,1783059042000,-151.0,0.00026742,2]
[426955768,1783059042000,-151.0,0.00026742,2]
[426955772,1783059042000,-156.80197,0.00026742,2]
[426955769,1783059042000,-156.80197,0.00026742,2]
[426955771,1783059042000,-151.0,0.00026742,2]
[426955776,1783059042000,-251.638202,0.00026742,2]
[426955786,1783059042000,-892.414534,0.00026742,2]
[426955751,1783059042000,-10044.02353165,0.000266,2]
[426955773,1783059042000,-156.801971,0.00026742,2]
[426955753,1783059042000,-190.0,0.00026685,2]
[426955740,1783059042000,-157.172891,0.00026584,2]
[426955760,1783059042000,-163.33736492,0.000267,2]
[426955777,1783059042000,-251.638204,0.00026742,2]
[426955731,1783059042000,-417.48535392,0.00026424,2]
[426955728,1783059042000,-150.0,0.000264,2]
[426955729,1783059042000,-39252.98,0.000264,2]
[426955730,1783059042000,-600.51,0.00026423,2]
[426955732,1783059042000,-150.0,0.0002646,7]
[426955735,1783059042000,-185.32,0.00026508,120]
[426955733,1783059042000,-150.0,0.000265,2]
[426955734,1783059042000,-150.0,0.000265,2]
[426955736,1783059042000,-500.0,0.00026526,90]
[426955737,1783059042000,-500.0,0.00026526,90]
[426955746,1783059042000,-200.0,0.00026586,2]
[426955742,1783059042000,-200.0,0.00026585,2]
[426955741,1783059042000,-200.0,0.00026585,2]
[426955743,1783059042000,-200.0,0.00026585,2]
[426955748,1783059042000,-1684.97224218,0.000266,2]
[426955739,1783059042000,-879.431,0.00026526,90]
[426955747,1783059042000,-200.0,0.00026586,2]
[426955744,1783059042000,-200.0,0.00026586,2]
[426955745,1783059042000,-200.0,0.00026586,2]
[426955738,1783059042000,-500.0,0.00026526,90]
[426955761,1783059042000,-174.34275617,0.000267,5]
[426955749,1783059042000,-1225.57974671,0.000266,2]
[426955750,1783059042000,-462.05292965,0.000266,2]
[426955775,1783059042000,-251.638202,0.00026742,2]
[426955829,1783059042000,-300.0,0.00026799,10]
[426955779,1783059042000,-1047.253721,0.00026742,2]
[426955804,1783059042000,-584.82111809,0.00026758,2]
[426955809,1783059042000,-992.0,0.00026767,2]
[426955806,1783059042000,-500.0,0.00026758,2]
[426955810,1783059042000,-152.0,0.00026783,3]
[426955819,1783059042000,-500.0,0.00026799,2]
[426955820,1783059042000,-500.0,0.00026799,2]
[426955821,1783059042000,-500.0,0.00026799,2]
[426955822,1783059042000,-500.0,0.00026799,2]
[426955831,1783059042000,-988955.4802597,0.000268,2]
[426955824,1783059042000,-502.4845754,0.00026799,2]
[426955801,1783059042000,-151.0,0.00026742,2]
[426955825,1783059042000,-567.99677537,0.00026799,2]
[426955826,1783059042000,-500.0,0.00026799,2]
[426955838,1783059042000,-1328.69538788,0.000268,2]
[426955823,1783059042000,-494.16095271,0.00026799,2]
[426955828,1783059042000,-532.87357416,0.00026799,2]
[426955827,1783059042000,-445.79639571,0.00026799,2]
[426955834,1783059042000,-337.566,0.00024484,2]
[426955833,1783059042000,-1898.57068222,0.00024484,2]
[426955832,1783059042000,-390.204,0.00024484,2]
[426955836,1783059042000,-9681.30195883,0.000268,2]
[426955787,1783059042000,-892.414542,0.00026742,2]
[426955830,1783059042000,-300.0,0.00026799,10]
[426955815,1783059042000,-150.0,0.00026795,7]
[426955835,1783059042000,-320.69804156,0.00024484,2]
[426955816,1783059042000,-157.172891,0.00026799,2]
[426955778,1783059042000,-1047.253721,0.00026742,2]
[426955780,1783059042000,-1047.253721,0.00026742,2]
[426955782,1783059042000,-151.0,0.00026742,2]
[426955784,1783059042000,-6663.73,0.00026742,2]
[426955781,1783059042000,-1047.25372045,0.00026742,2]
[426955785,1783059042000,-892.414534,0.00026742,2]
[426955790,1783059042000,-254.89282,0.00026742,2]
[426955788,1783059042000,-151.0,0.00026742,2]
[426955797,1783059042000,-151.0,0.00026742,2]
[426955792,1783059042000,-254.89282,0.00026742,2]
[426955793,1783059042000,-620.329416,0.00026742,2]
[426955783,1783059042000,-892.414534,0.00026742,2]
[426955789,1783059042000,-254.89282,0.00026742,2]
[426955798,1783059042000,-151.0,0.00026742,2]
[426955817,1783059042000,-500.0,0.00026799,2]
[426955818,1783059042000,-500.0,0.00026799,2]
[426955811,1783059042000,-150.0,0.00026795,7]
[426955812,1783059042000,-150.0,0.00026795,7]
[426955813,1783059042000,-150.00000001,0.00026795,7]
[426955796,1783059042000,-620.329419,0.00026742,2]
[426955795,1783059042000,-620.329416,0.00026742,2]
[426955791,1783059042000,-620.329416,0.00026742,2]
[426955794,1783059042000,-254.892817,0.00026742,2]
[426955814,1783059042000,-150.0,0.00026795,7]
[426955856,1783059043000,-113.0,0.000268,2]
[426955853,1783059043000,-5375.04313054,0.000268,2]
[426955854,1783059043000,-2845.64004338,0.000268,2]
[426955855,1783059043000,-500.0,0.00021616,2]
[426955852,1783059043000,-155.61,0.00026105,7]
[426955850,1783059043000,-500.0,0.00021616,2]
[426955851,1783059043000,-155.61,0.00024658,2]
[426955861,1783059046000,-369.96588249,0.00021716,2]
[426955862,1783059047000,-130.03411751,0.00021716,2]
[426955863,1783059047000,-2947.03872378,0.00025223,2]
[426955865,1783059047000,-500.0,0.00025799,2]
[426955867,1783059047000,-492.64,0.00026101,2]
[426955866,1783059047000,-500.0,0.00025799,2]
[426955868,1783059047000,-416175.87875512,0.000268,2]
[426955864,1783059047000,-500.0,0.00025701,2]
[426955888,1783060057000,150.0,0.00020146,120]
[426955892,1783060091000,155.49606168,0.000134,2]
[426955890,1783060091000,175.35138623,0.000134,2]
[426955891,1783060091000,151.0,0.000134,2]
[426955889,1783060091000,182.58603983,0.000134,2]
[426955893,1783060092000,850.03601332,0.000134,2]
[426955894,1783060093000,1271.60303861,0.000134,2]
[426955895,1783060096000,-1083.13038473,0.000149,2]
[426955915,1783060231000,-576.32,0.00017728,2]
[426955908,1783060231000,-651.61287062,0.00017309,2]
[426955912,1783060231000,-550.0,0.00017727,2]
[426955906,1783060231000,-250.0,0.00017273,2]
[426955919,1783060231000,-439.85895466,0.00017728,2]
[426955928,1783060231000,-163.92,0.00018103,2]
[426955916,1783060231000,-915.96,0.00017728,2]
[426955927,1783060231000,-600.0,0.00018103,2]
[426955903,1783060231000,-357.57905948,0.00016582,2]
[426955917,1783060231000,-1639.6,0.00017728,2]
[426955909,1783060231000,-365.99629955,0.00017457,2]
[426955905,1783060231000,-600.0,0.00016957,2]
[426955910,1783060231000,-178.57,0.00017645,2]
[426955907,1783060231000,-553.34806049,0.00017303,2]
[426955914,1783060231000,-9999.99,0.00017728,2]
[426955911,1783060231000,-274.16,0.00017667,2]
[426955904,1783060231000,-250.0,0.00016707,2]
[426955898,1783060231000,-637.39061527,0.000149,2]
[426955901,1783060231000,-292.26231596,0.00016482,2]
[426955902,1783060231000,-600.0,0.0001652,2]
[426955900,1783060231000,-544.38661981,0.00016457,2]
[426955899,1783060231000,-300.0,0.0001639,2]
[426955924,1783060231000,-600.0,0.00018103,2]
[426955913,1783060231000,-150.99,0.00017728,2]
[426955926,1783060231000,-193.0,0.00018103,2]
[426955933,1783060231000,-151.05874926,0.00018367,2]
[426955918,1783060231000,-1041.18,0.00017728,2]
[426955921,1783060231000,-299.99,0.00017728,4]
[426955946,1783060231000,-167.97,0.0001995,2]
[426955947,1783060231000,-503.51525813,0.0001996,2]
[426955948,1783060231000,-1021.52810958,0.0001996,2]
[426955944,1783060231000,-248.62398415,0.0001983,2]
[426955943,1783060231000,-372.93597622,0.0001983,2]
[426955942,1783060231000,-250.0,0.00019688,2]
[426955939,1783060231000,-263.52380474,0.00019434,2]
[426955930,1783060231000,-2455.75202652,0.00018164,2]
[426955945,1783060231000,-891.90679774,0.0001983,2]
[426955937,1783060231000,-501.15986951,0.00018995,2]
[426955935,1783060231000,-292.26231594,0.00018541,2]
[426955929,1783060231000,-566.29223048,0.00018164,2]
[426955932,1783060231000,-1012.94408207,0.00018257,2]
[426955931,1783060231000,-849.76822753,0.00018256,2]
[426955934,1783060231000,-688.46653532,0.00018367,2]
[426955936,1783060231000,-935.0,0.00018808,2]
[426955938,1783060231000,-39.51190026,0.00019434,2]
[426955941,1783060231000,-200.0,0.00019661,2]
[426955925,1783060231000,-250.0,0.00018103,2]
[426955923,1783060231000,-502.0,0.000181,2]
[426955922,1783060231000,-174.92,0.00017824,2]
[426955920,1783060231000,-9560.13104534,0.00017728,2]
[426955940,1783060231000,-600.0,0.00019434,2]
[426955953,1783060232000,-1898.12028,0.0002063,2]
[426955949,1783060232000,-63.95663229,0.0001996,2]
[426955950,1783060232000,-150.0,0.00020146,2]